[Event "Late-Titled-Tuesday-Blitz-March-19-2024"]
[Site "Chess.com"]
[Date "2024.03.19"]
[Round "7"]
[White "CarlosjPineror"]
[Black "SultaiC"]
[Result "1-0"]
[WhiteElo "2673"]
[BlackElo "2505"]
[TimeControl "180+1"]
[EndTime "15:16:11 PDT"]
[Termination "CarlosjPineror won on time"]

1. e4 {[%clk 0:03:00.9]} 1... c5 {[%clk 0:02:58.2]} 2. Nf3 {[%clk 0:03:00.2]}
2... d6 {[%clk 0:02:57.9]} 3. d4 {[%clk 0:02:59.5]} 3... cxd4 {[%clk 0:02:58.5]}
4. Nxd4 {[%clk 0:03:00.4]} 4... Nf6 {[%clk 0:02:57]} 5. Nc3 {[%clk 0:03:00.8]}
5... a6 {[%clk 0:02:56.9]} 6. Bg5 {[%clk 0:03:01.4]} 6... e6 {[%clk 0:02:56.7]}
7. f4 {[%clk 0:03:02.1]} 7... Be7 {[%clk 0:02:54.9]} 8. Qe2 {[%clk 0:03:02.7]}
8... Qc7 {[%clk 0:02:53.4]} 9. O-O-O {[%clk 0:03:03]} 9... O-O {[%clk
0:02:49.6]} 10. g4 {[%clk 0:03:03.6]} 10... b5 {[%clk 0:02:48.7]} 11. Bg2 {[%clk
0:03:03.2]} 11... Bb7 {[%clk 0:02:48.6]} 12. h4 {[%clk 0:03:02.6]} 12... b4
{[%clk 0:02:46.3]} 13. Na4 {[%clk 0:03:02.7]} 13... Nc6 {[%clk 0:02:45.2]} 14.
Nb3 {[%clk 0:02:47.1]} 14... Rac8 {[%clk 0:02:40.8]} 15. Kb1 {[%clk 0:02:44.5]}
15... Na5 {[%clk 0:02:26.6]} 16. Nxa5 {[%clk 0:02:40.2]} 16... Qxa5 {[%clk
0:02:26.2]} 17. b3 {[%clk 0:02:41.1]} 17... Bc6 {[%clk 0:02:22.1]} 18. e5 {[%clk
0:02:35.8]} 18... dxe5 {[%clk 0:02:18.9]} 19. fxe5 {[%clk 0:02:36.7]} 19... Bxg2
{[%clk 0:02:10.2]} 20. Qxg2 {[%clk 0:02:33.4]} 20... Nd5 {[%clk 0:02:05.5]} 21.
Rxd5 {[%clk 0:02:26.8]} 21... exd5 {[%clk 0:02:05.5]} 22. Bxe7 {[%clk
0:02:26.7]} 22... Rfe8 {[%clk 0:02:05.6]} 23. Bd6 {[%clk 0:02:24.5]} 23... d4
{[%clk 0:02:06.1]} 24. Rf1 {[%clk 0:02:21.2]} 24... Qb5 {[%clk 0:02:03]} 25. Qf3
{[%clk 0:02:18.4]} 25... Kh8 {[%clk 0:01:49.7]} 26. Qxf7 {[%clk 0:02:05.3]}
26... d3 {[%clk 0:01:48.3]} 27. h5 {[%clk 0:01:45.9]} 27... dxc2+ {[%clk
0:01:34.3]} 28. Kc1 {[%clk 0:01:45]} 28... h6 {[%clk 0:01:31.1]} 29. g5 {[%clk
0:01:44.1]} 29... Qd3 {[%clk 0:01:16.7]} 30. Qf3 {[%clk 0:01:21.3]} 30... Qd4
{[%clk 0:01:00.2]} 31. Nb2 {[%clk 0:01:21]} 31... Rg8 {[%clk 0:00:37.5]} 32. g6
{[%clk 0:01:14.8]} 32... Rc3 {[%clk 0:00:36.2]} 33. Qf4 {[%clk 0:01:10.8]} 33...
Qd5 {[%clk 0:00:14.5]} 34. Qf7 {[%clk 0:01:10.2]} 34... Qa8 {[%clk 0:00:12.8]}
35. e6 {[%clk 0:01:04.1]} 35... Rcc8 {[%clk 0:00:10.1]} 36. e7 {[%clk 0:01:00]}
36... Rce8 {[%clk 0:00:09.4]} 37. Nd3 {[%clk 0:00:51.1]} 37... Qe4 {[%clk
0:00:08.7]} 38. Qf5 {[%clk 0:00:47.3]} 38... Qe3+ {[%clk 0:00:08.8]} 39. Kxc2
{[%clk 0:00:40.6]} 39... Rc8+ {[%clk 0:00:07.3]} 40. Kb1 {[%clk 0:00:38.3]}
40... Qe2 {[%clk 0:00:03.5]} 41. Ne5 {[%clk 0:00:36.7]} 1-0

[Event "Late-Titled-Tuesday-Blitz-March-19-2024"]
[Site "Chess.com"]
[Date "2024.03.19"]
[Round "7"]
[White "ilushka"]
[Black "Rawnsdale"]
[Result "0-1"]
[WhiteElo "2395"]
[BlackElo "2533"]
[TimeControl "180+1"]
[EndTime "15:16:14 PDT"]
[Termination "Rawnsdale won on time"]

1. Nf3 {[%clk 0:03:00.9]} 1... d5 {[%clk 0:02:59.8]} 2. g3 {[%clk 0:03:00.6]}
2... e6 {[%clk 0:02:58.8]} 3. Bg2 {[%clk 0:03:01.1]} 3... Be7 {[%clk 0:02:59.5]}
4. d4 {[%clk 0:03:00.7]} 4... Nf6 {[%clk 0:03:00]} 5. c4 {[%clk 0:03:01]} 5...
O-O {[%clk 0:03:00.6]} 6. Qc2 {[%clk 0:03:01.1]} 6... Nbd7 {[%clk 0:02:59.4]} 7.
Bf4 {[%clk 0:03:01]} 7... c6 {[%clk 0:02:56.1]} 8. O-O {[%clk 0:03:00.1]} 8...
b6 {[%clk 0:02:55.4]} 9. Nc3 {[%clk 0:02:59.6]} 9... Bb7 {[%clk 0:02:55.5]} 10.
e4 {[%clk 0:02:59.4]} 10... dxc4 {[%clk 0:02:52.4]} 11. a4 {[%clk 0:02:52.6]}
11... Rc8 {[%clk 0:02:48.4]} 12. Rfd1 {[%clk 0:02:45.3]} 12... Bb4 {[%clk
0:02:35.8]} 13. Nd2 {[%clk 0:02:40.4]} 13... c5 {[%clk 0:02:30.5]} 14. d5 {[%clk
0:02:00.5]} 14... Bxc3 {[%clk 0:02:26.9]} 15. bxc3 {[%clk 0:01:57]} 15... exd5
{[%clk 0:02:27]} 16. exd5 {[%clk 0:01:56.7]} 16... Bxd5 {[%clk 0:02:23.6]} 17.
Bg5 {[%clk 0:01:45]} 17... Bxg2 {[%clk 0:02:20]} 18. Kxg2 {[%clk 0:01:44.3]}
18... Qc7 {[%clk 0:02:19.8]} 19. Nxc4 {[%clk 0:01:32.2]} 19... h6 {[%clk
0:02:16.2]} 20. Bf4 {[%clk 0:01:28.9]} 20... Qc6+ {[%clk 0:02:16.1]} 21. Kg1
{[%clk 0:01:28.4]} 21... Nd5 {[%clk 0:02:11.9]} 22. Bd6 {[%clk 0:01:07.3]} 22...
Rfd8 {[%clk 0:02:07]} 23. Qd3 {[%clk 0:01:04.1]} 23... N7f6 {[%clk 0:02:04.9]}
24. Be5 {[%clk 0:00:55]} 24... Ng4 {[%clk 0:01:45.6]} 25. Qf3 {[%clk 0:00:24.2]}
25... Qe6 {[%clk 0:01:30.8]} 26. Bd6 {[%clk 0:00:13]} 26... Ndf6 {[%clk
0:01:26.9]} 27. Bf4 {[%clk 0:00:11.4]} 27... Qxc4 {[%clk 0:01:26.4]} 28. Rxd8+
{[%clk 0:00:07.9]} 28... Rxd8 {[%clk 0:01:27.3]} 29. h3 {[%clk 0:00:07.9]} 29...
g5 {[%clk 0:01:16.1]} 30. Bc7 {[%clk 0:00:07.6]} 30... Rd3 {[%clk 0:01:13.2]}
31. Qf5 {[%clk 0:00:05.8]} 31... Qxc3 {[%clk 0:00:51.6]} 32. Rf1 {[%clk
0:00:06.3]} 32... Rf3 {[%clk 0:00:49.9]} 33. Qc8+ {[%clk 0:00:05.8]} 33... Kg7
{[%clk 0:00:50.3]} 34. hxg4 {[%clk 0:00:06.2]} 34... Qd4 {[%clk 0:00:45.2]} 35.
Qb8 {[%clk 0:00:04]} 35... Nd7 {[%clk 0:00:36.7]} 36. Qd8 {[%clk 0:00:03.3]}
36... Qxg4 {[%clk 0:00:18.9]} 37. Qa8 {[%clk 0:00:02.2]} 37... Nf6 {[%clk
0:00:17.2]} 38. Be5 {[%clk 0:00:01]} 38... h5 {[%clk 0:00:17.1]} 0-1

[Event "Late-Titled-Tuesday-Blitz-March-19-2024"]
[Site "Chess.com"]
[Date "2024.03.19"]
[Round "7"]
[White "Vaathi_Coming"]
[Black "Vladimir_Zakhartsov"]
[Result "0-1"]
[WhiteElo "2887"]
[BlackElo "3001"]
[TimeControl "180+1"]
[EndTime "15:16:15 PDT"]
[Termination "Vladimir_Zakhartsov won on time"]

1. g3 {[%clk 0:03:00.9]} 1... d5 {[%clk 0:02:55.1]} 2. Bg2 {[%clk 0:02:59.2]}
2... e5 {[%clk 0:02:55.3]} 3. d3 {[%clk 0:02:58.9]} 3... Nf6 {[%clk 0:02:54.8]}
4. Nf3 {[%clk 0:02:59.2]} 4... Bd6 {[%clk 0:02:54.7]} 5. O-O {[%clk 0:02:59.3]}
5... c6 {[%clk 0:02:52.7]} 6. c3 {[%clk 0:02:53.8]} 6... O-O {[%clk 0:02:51.7]}
7. Qc2 {[%clk 0:02:53.6]} 7... a5 {[%clk 0:02:49.6]} 8. a4 {[%clk 0:02:53.4]}
8... Na6 {[%clk 0:02:45.7]} 9. e4 {[%clk 0:02:51]} 9... Re8 {[%clk 0:02:42.3]}
10. Na3 {[%clk 0:02:41]} 10... h6 {[%clk 0:02:38.1]} 11. Re1 {[%clk 0:02:34.8]}
11... dxe4 {[%clk 0:02:26.5]} 12. dxe4 {[%clk 0:02:35.7]} 12... Be6 {[%clk
0:02:27]} 13. Bf1 {[%clk 0:01:32.4]} 13... Bg4 {[%clk 0:02:04]} 14. Nh4 {[%clk
0:01:29.6]} 14... Nc5 {[%clk 0:01:57.9]} 15. Nc4 {[%clk 0:01:21.2]} 15... Bc7
{[%clk 0:01:56.1]} 16. f3 {[%clk 0:01:11.9]} 16... Be6 {[%clk 0:01:43.6]} 17.
Be3 {[%clk 0:01:11.7]} 17... Qe7 {[%clk 0:01:30.3]} 18. Nf5 {[%clk 0:01:04.5]}
18... Bxf5 {[%clk 0:01:24.7]} 19. exf5 {[%clk 0:01:05.4]} 19... Nd5 {[%clk
0:01:25]} 20. Bf2 {[%clk 0:01:02.6]} 20... Nd7 {[%clk 0:01:24.8]} 21. Rad1
{[%clk 0:00:56.6]} 21... N7f6 {[%clk 0:01:24.6]} 22. Qb3 {[%clk 0:00:41.9]}
22... Bb8 {[%clk 0:01:21.1]} 23. Bg2 {[%clk 0:00:32.2]} 23... Qc7 {[%clk
0:01:12.8]} 24. Nb6 {[%clk 0:00:29.4]} 24... Nxb6 {[%clk 0:01:08.3]} 25. Bxb6
{[%clk 0:00:26.8]} 25... Ba7 {[%clk 0:01:04]} 26. Bxa7 {[%clk 0:00:25.9]} 26...
Rxa7 {[%clk 0:01:04.9]} 27. Rd2 {[%clk 0:00:15.1]} 27... Raa8 {[%clk 0:01:01.1]}
28. Red1 {[%clk 0:00:15.5]} 28... Re7 {[%clk 0:00:58.2]} 29. c4 {[%clk 0:00:11]}
29... Rae8 {[%clk 0:00:45]} 30. c5 {[%clk 0:00:10.9]} 30... Nd5 {[%clk
0:00:43.7]} 31. Rd3 {[%clk 0:00:06.5]} 31... Qc8 {[%clk 0:00:41.1]} 32. g4
{[%clk 0:00:05.9]} 32... Nf6 {[%clk 0:00:33.7]} 33. Rd6 {[%clk 0:00:05.1]} 33...
Nd5 {[%clk 0:00:21.3]} 34. Qd3 {[%clk 0:00:03.1]} 34... f6 {[%clk 0:00:20.5]}
35. Qe4 {[%clk 0:00:02]} 35... Kh7 {[%clk 0:00:20.4]} 36. Bf1 {[%clk 0:00:02.2]}
36... Qa8 {[%clk 0:00:19.1]} 37. Bc4 {[%clk 0:00:02.2]} 37... Qa7 {[%clk
0:00:18.9]} 0-1

[Event "Late-Titled-Tuesday-Blitz-March-19-2024"]
[Site "Chess.com"]
[Date "2024.03.19"]
[Round "7"]
[White "dolynachess"]
[Black "BilicVladimir"]
[Result "1-0"]
[WhiteElo "2525"]
[BlackElo "2663"]
[TimeControl "180+1"]
[EndTime "15:16:15 PDT"]
[Termination "dolynachess won by checkmate"]

1. d4 {[%clk 0:03:00.9]} 1... d5 {[%clk 0:02:59.3]} 2. c4 {[%clk 0:03:00.9]}
2... c6 {[%clk 0:02:59.7]} 3. Nf3 {[%clk 0:03:01.7]} 3... Nf6 {[%clk 0:03:00.1]}
4. g3 {[%clk 0:03:02.6]} 4... a6 {[%clk 0:03:00.5]} 5. Bg2 {[%clk 0:03:03.1]}
5... b5 {[%clk 0:03:01.1]} 6. O-O {[%clk 0:03:03.7]} 6... dxc4 {[%clk
0:03:00.7]} 7. Nc3 {[%clk 0:02:57.5]} 7... e6 {[%clk 0:02:59.4]} 8. e4 {[%clk
0:02:57]} 8... Bb7 {[%clk 0:02:59.6]} 9. e5 {[%clk 0:02:55.2]} 9... Nd5 {[%clk
0:02:59]} 10. Ng5 {[%clk 0:02:55.5]} 10... Nxc3 {[%clk 0:02:56]} 11. bxc3 {[%clk
0:02:55.1]} 11... Be7 {[%clk 0:02:56]} 12. Qh5 {[%clk 0:02:54.4]} 12... Bxg5
{[%clk 0:02:54.7]} 13. Bxg5 {[%clk 0:02:53.6]} 13... Qc7 {[%clk 0:02:54.5]} 14.
a4 {[%clk 0:02:48.8]} 14... Nd7 {[%clk 0:02:53.9]} 15. Rfb1 {[%clk 0:02:26.9]}
15... Nb6 {[%clk 0:02:40.7]} 16. Bc1 {[%clk 0:02:20.3]} 16... Nxa4 {[%clk
0:02:25.7]} 17. Rxa4 {[%clk 0:02:19.6]} 17... bxa4 {[%clk 0:02:25.3]} 18. Ba3
{[%clk 0:02:19.5]} 18... Rd8 {[%clk 0:02:10]} 19. Qg5 {[%clk 0:02:05.9]} 19...
Rg8 {[%clk 0:02:00.8]} 20. Bc5 {[%clk 0:01:56.9]} 20... Rd5 {[%clk 0:01:53.5]}
21. Rb6 {[%clk 0:01:21.4]} 21... Rxc5 {[%clk 0:01:34.3]} 22. dxc5 {[%clk
0:01:22.3]} 22... g6 {[%clk 0:01:20.7]} 23. Qf4 {[%clk 0:01:06.3]} 23... Kf8
{[%clk 0:01:13]} 24. Qh6+ {[%clk 0:01:00.5]} 24... Ke7 {[%clk 0:01:08.4]} 25.
Qh4+ {[%clk 0:00:59.4]} 25... Kf8 {[%clk 0:01:07.3]} 26. Qxh7 {[%clk 0:00:56]}
26... a3 {[%clk 0:01:07.3]} 27. Qh6+ {[%clk 0:00:53]} 27... Ke7 {[%clk
0:01:05.3]} 28. Qg5+ {[%clk 0:00:50.3]} 28... Kf8 {[%clk 0:01:05.3]} 29. Qc1
{[%clk 0:00:48.9]} 29... Kg7 {[%clk 0:01:01.9]} 30. Qxa3 {[%clk 0:00:48.4]}
30... Rd8 {[%clk 0:01:01.7]} 31. h4 {[%clk 0:00:46.6]} 31... Rd1+ {[%clk
0:00:55.4]} 32. Kh2 {[%clk 0:00:46.2]} 32... Rd2 {[%clk 0:00:54.9]} 33. Qb4
{[%clk 0:00:35.8]} 33... Rd7 {[%clk 0:00:53.6]} 34. f4 {[%clk 0:00:31.9]} 34...
a5 {[%clk 0:00:45.2]} 35. Qxa5 {[%clk 0:00:28.7]} 35... Rd2 {[%clk 0:00:44.1]}
36. Qa7 {[%clk 0:00:20.2]} 36... Qd8 {[%clk 0:00:33.7]} 37. Rxb7 {[%clk
0:00:18.7]} 37... Rxg2+ {[%clk 0:00:15.4]} 38. Kxg2 {[%clk 0:00:19.6]} 38...
Qd5+ {[%clk 0:00:15.2]} 39. Kh2 {[%clk 0:00:17.6]} 39... Qd2+ {[%clk 0:00:14.3]}
40. Kh3 {[%clk 0:00:17.4]} 40... g5 {[%clk 0:00:10.3]} 41. Rxf7+ {[%clk
0:00:16.2]} 41... Kg6 {[%clk 0:00:10.8]} 42. Rf6+ {[%clk 0:00:14.6]} 42... Kh5
{[%clk 0:00:11]} 43. Qf7# {[%clk 0:00:13.7]} 1-0

[Event "Late-Titled-Tuesday-Blitz-March-19-2024"]
[Site "Chess.com"]
[Date "2024.03.19"]
[Round "7"]
[White "Willhaven3"]
[Black "AndresDelgado77"]
[Result "1-0"]
[WhiteElo "2498"]
[BlackElo "2340"]
[TimeControl "180+1"]
[EndTime "15:16:15 PDT"]
[Termination "Willhaven3 won on time"]

1. e4 {[%clk 0:03:00.9]} 1... e6 {[%clk 0:02:59.5]} 2. d4 {[%clk 0:02:59.6]}
2... d5 {[%clk 0:02:59.1]} 3. Nc3 {[%clk 0:03:00]} 3... Nf6 {[%clk 0:02:58.7]}
4. Bg5 {[%clk 0:02:58.9]} 4... Bb4 {[%clk 0:02:58.1]} 5. e5 {[%clk 0:02:56.5]}
5... h6 {[%clk 0:02:58.3]} 6. Bd2 {[%clk 0:02:56.5]} 6... Bxc3 {[%clk
0:02:58.6]} 7. bxc3 {[%clk 0:02:57.2]} 7... Ne4 {[%clk 0:02:58.9]} 8. Qg4 {[%clk
0:02:52.3]} 8... Kf8 {[%clk 0:02:59.1]} 9. Bd3 {[%clk 0:02:49.7]} 9... Nxd2
{[%clk 0:02:58.8]} 10. Kxd2 {[%clk 0:02:49.9]} 10... c5 {[%clk 0:02:59.2]} 11.
dxc5 {[%clk 0:02:48.7]} 11... Qc7 {[%clk 0:02:51.5]} 12. Nf3 {[%clk 0:02:48.2]}
12... Qxc5 {[%clk 0:02:49.6]} 13. h4 {[%clk 0:02:48.3]} 13... Qxf2+ {[%clk
0:02:48.1]} 14. Be2 {[%clk 0:02:45.5]} 14... Nc6 {[%clk 0:02:19.7]} 15. Rhf1
{[%clk 0:02:44.9]} 15... Qc5 {[%clk 0:02:15.6]} 16. Bd3 {[%clk 0:02:37.7]} 16...
Bd7 {[%clk 0:02:03.4]} 17. Qf4 {[%clk 0:02:21]} 17... Be8 {[%clk 0:01:45.5]} 18.
g4 {[%clk 0:02:09.7]} 18... Rc8 {[%clk 0:01:42.1]} 19. g5 {[%clk 0:02:04.1]}
19... Ne7 {[%clk 0:01:35.8]} 20. g6 {[%clk 0:01:27.5]} 20... Qxc3+ {[%clk
0:01:23.7]} 21. Ke2 {[%clk 0:01:27.5]} 21... Nf5 {[%clk 0:01:20.7]} 22. gxf7
{[%clk 0:01:14.7]} 22... Bxf7 {[%clk 0:00:49.6]} 23. Bxf5 {[%clk 0:01:12.7]}
23... exf5 {[%clk 0:00:49.5]} 24. Nd4 {[%clk 0:01:13]} 24... g6 {[%clk
0:00:41.2]} 25. e6 {[%clk 0:01:07.5]} 25... Rc4 {[%clk 0:00:38.5]} 26. Rad1
{[%clk 0:01:01.1]} 26... Rxd4 {[%clk 0:00:35.1]} 27. Rxd4 {[%clk 0:01:02]} 27...
Bxe6 {[%clk 0:00:34.5]} 28. Qe5 {[%clk 0:00:48.6]} 28... Qxc2+ {[%clk
0:00:24.3]} 29. Kf3 {[%clk 0:00:48.4]} 29... Qc3+ {[%clk 0:00:15.4]} 30. Kg2
{[%clk 0:00:44.4]} 30... Rh7 {[%clk 0:00:11.2]} 31. Rfd1 {[%clk 0:00:31.4]}
31... Qc6 {[%clk 0:00:10.2]} 32. Qf6+ {[%clk 0:00:31.1]} 32... Rf7 {[%clk
0:00:09.2]} 33. Qh8+ {[%clk 0:00:31.1]} 33... Ke7 {[%clk 0:00:09.1]} 34. Qxh6
{[%clk 0:00:31.7]} 34... Qc2+ {[%clk 0:00:06.7]} 35. Kh1 {[%clk 0:00:27.9]}
35... f4 {[%clk 0:00:04.9]} 36. Qg5+ {[%clk 0:00:28.1]} 36... Ke8 {[%clk
0:00:03.7]} 37. Qe5 {[%clk 0:00:27.5]} 37... Re7 {[%clk 0:00:02.2]} 38. Qh8+
{[%clk 0:00:26.7]} 38... Kf7 {[%clk 0:00:01.5]} 39. Qh7+ {[%clk 0:00:25.8]}
39... Kf6 {[%clk 0:00:01.4]} 40. Qh8+ {[%clk 0:00:26.3]} 1-0

[Event "Late-Titled-Tuesday-Blitz-March-19-2024"]
[Site "Chess.com"]
[Date "2024.03.19"]
[Round "7"]
[White "Jagerrmeisterr"]
[Black "Bilan_Danila"]
[Result "0-1"]
[WhiteElo "2749"]
[BlackElo "2656"]
[TimeControl "180+1"]
[EndTime "15:16:21 PDT"]
[Termination "Bilan_Danila won by checkmate"]

1. e4 {[%clk 0:03:00.9]} 1... e5 {[%clk 0:02:54.8]} 2. Nc3 {[%clk 0:02:57.8]}
2... Nf6 {[%clk 0:02:53.9]} 3. Nf3 {[%clk 0:02:58]} 3... Bb4 {[%clk 0:02:53]} 4.
Nxe5 {[%clk 0:02:48.5]} 4... Qe7 {[%clk 0:02:51.5]} 5. Nd3 {[%clk 0:02:47.2]}
5... Bxc3 {[%clk 0:02:47.2]} 6. dxc3 {[%clk 0:02:46.3]} 6... Nxe4 {[%clk
0:02:47.8]} 7. Be3 {[%clk 0:02:42.8]} 7... d5 {[%clk 0:02:46]} 8. Nf4 {[%clk
0:02:37.2]} 8... c6 {[%clk 0:02:43.7]} 9. Qd4 {[%clk 0:02:29.7]} 9... O-O {[%clk
0:02:39.8]} 10. O-O-O {[%clk 0:02:21.5]} 10... Be6 {[%clk 0:02:29.7]} 11. c4
{[%clk 0:02:17]} 11... Nf6 {[%clk 0:02:04.4]} 12. Nxe6 {[%clk 0:01:41.3]} 12...
fxe6 {[%clk 0:01:57.6]} 13. Qh4 {[%clk 0:01:22.4]} 13... Nbd7 {[%clk 0:01:52]}
14. Be2 {[%clk 0:01:15.6]} 14... Ne5 {[%clk 0:01:45.9]} 15. Rhe1 {[%clk
0:01:07.8]} 15... Ng6 {[%clk 0:01:45.6]} 16. Qh3 {[%clk 0:01:05.5]} 16... e5
{[%clk 0:01:27.5]} 17. Bg5 {[%clk 0:01:01.9]} 17... Rad8 {[%clk 0:01:21.8]} 18.
cxd5 {[%clk 0:00:34.8]} 18... cxd5 {[%clk 0:01:17.8]} 19. Bg4 {[%clk 0:00:28.9]}
19... Rd6 {[%clk 0:01:02.7]} 20. Bf5 {[%clk 0:00:21.8]} 20... d4 {[%clk
0:00:36.9]} 21. f4 {[%clk 0:00:18.7]} 21... e4 {[%clk 0:00:28.7]} 22. Bxe4
{[%clk 0:00:15.6]} 22... Qf7 {[%clk 0:00:26]} 23. Bxg6 {[%clk 0:00:11.1]} 23...
hxg6 {[%clk 0:00:22.4]} 24. Qb3 {[%clk 0:00:06.7]} 24... Nd5 {[%clk 0:00:22.2]}
25. Re5 {[%clk 0:00:06.2]} 25... Nxf4 {[%clk 0:00:21.4]} 26. Qxf7+ {[%clk
0:00:05.3]} 26... Rxf7 {[%clk 0:00:22.3]} 27. g3 {[%clk 0:00:04.1]} 27... Ne6
{[%clk 0:00:21.3]} 28. Bd2 {[%clk 0:00:03.6]} 28... Rf5 {[%clk 0:00:21.1]} 29.
Rde1 {[%clk 0:00:04.1]} 29... Kf7 {[%clk 0:00:20.1]} 30. Kd1 {[%clk 0:00:04.3]}
30... Kf6 {[%clk 0:00:20.2]} 31. R5e4 {[%clk 0:00:03.4]} 31... d3 {[%clk
0:00:19.4]} 32. c4 {[%clk 0:00:03.3]} 32... Nc5 {[%clk 0:00:18.9]} 33. Bc3+
{[%clk 0:00:03.8]} 33... Kg5 {[%clk 0:00:16.8]} 34. Re7 {[%clk 0:00:04.2]} 34...
Rf2 {[%clk 0:00:12.7]} 35. h4+ {[%clk 0:00:03.2]} 35... Kg4 {[%clk 0:00:11.8]}
36. R7e5 {[%clk 0:00:03.5]} 36... d2 {[%clk 0:00:11.4]} 37. Rg1 {[%clk
0:00:03.8]} 37... Na4 {[%clk 0:00:11]} 38. Rg5+ {[%clk 0:00:03.9]} 38... Kf3
{[%clk 0:00:10.3]} 39. Be5 {[%clk 0:00:04.8]} 39... Rd3 {[%clk 0:00:09.1]} 40.
b3 {[%clk 0:00:05.3]} 40... Nc3+ {[%clk 0:00:08.4]} 41. Kc2 {[%clk 0:00:05.5]}
41... d1=Q# {[%clk 0:00:08.7]} 0-1

[Event "Late-Titled-Tuesday-Blitz-March-19-2024"]
[Site "Chess.com"]
[Date "2024.03.19"]
[Round "7"]
[White "Fore_Man"]
[Black "shirovin"]
[Result "1-0"]
[WhiteElo "2284"]
[BlackElo "2040"]
[TimeControl "180+1"]
[EndTime "15:16:22 PDT"]
[Termination "Fore_Man won on time"]

1. Nf3 {[%clk 0:03:00.9]} 1... Nf6 {[%clk 0:02:58.2]} 2. d4 {[%clk 0:03:01.5]}
2... e6 {[%clk 0:02:56.8]} 3. c4 {[%clk 0:03:01.9]} 3... d5 {[%clk 0:02:56]} 4.
Nc3 {[%clk 0:03:01.8]} 4... Bb4 {[%clk 0:02:54.8]} 5. Qa4+ {[%clk 0:03:00.5]}
5... Nc6 {[%clk 0:02:53.6]} 6. e3 {[%clk 0:03:00.9]} 6... O-O {[%clk 0:02:47.3]}
7. Bd2 {[%clk 0:03:01]} 7... a6 {[%clk 0:02:39.7]} 8. Qc2 {[%clk 0:02:54.4]}
8... dxc4 {[%clk 0:02:38.1]} 9. Bxc4 {[%clk 0:02:55.3]} 9... Bd6 {[%clk
0:02:38.2]} 10. O-O {[%clk 0:02:51.2]} 10... e5 {[%clk 0:02:37]} 11. Rfe1 {[%clk
0:02:31.4]} 11... Bg4 {[%clk 0:02:27.3]} 12. dxe5 {[%clk 0:02:24.6]} 12... Nxe5
{[%clk 0:02:19.1]} 13. Nxe5 {[%clk 0:02:23.3]} 13... Bxe5 {[%clk 0:02:18.8]} 14.
f3 {[%clk 0:02:20.8]} 14... Bd7 {[%clk 0:02:06.1]} 15. Rad1 {[%clk 0:02:19.3]}
15... Qe7 {[%clk 0:01:57.2]} 16. Ne4 {[%clk 0:02:02.1]} 16... Bf5 {[%clk
0:01:38.2]} 17. Nxf6+ {[%clk 0:02:01.4]} 17... Qxf6 {[%clk 0:01:36.2]} 18. e4
{[%clk 0:02:02]} 18... Qh4 {[%clk 0:01:16.1]} 19. f4 {[%clk 0:01:47.1]} 19...
Bd4+ {[%clk 0:01:13.1]} 20. Kh1 {[%clk 0:01:47.4]} 20... Bg4 {[%clk 0:01:12.1]}
21. Be2 {[%clk 0:01:43.8]} 21... Rad8 {[%clk 0:00:47.5]} 22. Bxg4 {[%clk
0:01:10.3]} 22... Bf2 {[%clk 0:00:45.9]} 23. Rf1 {[%clk 0:00:52.1]} 23... Rd6
{[%clk 0:00:23.6]} 24. Bh3 {[%clk 0:00:36.9]} 24... Rfd8 {[%clk 0:00:18.7]} 25.
Bc3 {[%clk 0:00:37.3]} 25... Rxd1 {[%clk 0:00:14.7]} 26. Rxd1 {[%clk 0:00:38.2]}
26... Rxd1+ {[%clk 0:00:13.8]} 27. Qxd1 {[%clk 0:00:39.1]} 27... h6 {[%clk
0:00:13.3]} 28. Qg4 {[%clk 0:00:37.8]} 28... Qd8 {[%clk 0:00:10.3]} 29. Qc8
{[%clk 0:00:37.4]} 29... Qxc8 {[%clk 0:00:09]} 30. Bxc8 {[%clk 0:00:38.3]} 30...
b5 {[%clk 0:00:09.4]} 31. Bxa6 {[%clk 0:00:38.6]} 31... Be3 {[%clk 0:00:06.1]}
32. Bxb5 {[%clk 0:00:36.9]} 32... Bxf4 {[%clk 0:00:05.5]} 33. a4 {[%clk
0:00:37.8]} 33... Kf8 {[%clk 0:00:01.7]} 34. Bc6 {[%clk 0:00:38.7]} 34... Ke7
{[%clk 0:00:02.1]} 35. a5 {[%clk 0:00:39.5]} 35... Kd6 {[%clk 0:00:02.7]} 36. a6
{[%clk 0:00:40.1]} 36... Kxc6 {[%clk 0:00:02.9]} 37. Bxg7 {[%clk 0:00:39.9]}
37... Kb6 {[%clk 0:00:01.9]} 38. g3 {[%clk 0:00:38.2]} 38... Bd6 {[%clk
0:00:01.1]} 39. Bxh6 {[%clk 0:00:34.9]} 39... Be7 {[%clk 0:00:02]} 40. Be3+
{[%clk 0:00:30.1]} 40... Kxa6 {[%clk 0:00:02.3]} 41. Bd4 {[%clk 0:00:30.1]}
41... Kb5 {[%clk 0:00:02.8]} 42. h4 {[%clk 0:00:30.3]} 42... Kc4 {[%clk
0:00:03.4]} 43. Bc3 {[%clk 0:00:30.9]} 43... Kd3 {[%clk 0:00:03.6]} 44. h5
{[%clk 0:00:26.1]} 44... Kxe4 {[%clk 0:00:03.4]} 45. h6 {[%clk 0:00:25.9]} 1-0